bitfinex/quotes_SOLUSD_20260103
["timestamp","ask_amount","ask_price","bid_price","bid_amount"]
[1767469724539,0.70300951,131.79,131.76,10.85579579]
[1767469725162,0.70300951,131.79,131.77,0.43608403]
[1767469735672,0.70300951,131.79,131.76,9.83638043]
[1767469740781,0.65735138,131.78,131.75,13.78]
[1767469740980,2.46832403,131.78,131.73,16.08705668]
[1767469741186,0.65735138,131.77,131.73,23.6779905]
[1767469742081,8.24643584,131.77,131.73,23.6779905]
[1767469742284,0.65735138,131.76,131.73,23.6779905]
[1767469742489,0.65735138,131.76,131.73,23.24190647]
[1767469742884,0.65735138,131.76,131.73,21.43093382]
[1767469743390,0.65735138,131.76,131.73,21.86701785]
[1767469744592,0.65735138,131.76,131.73,21.43093382]
[1767469748498,0.65735138,131.76,131.73,21.86701785]
[1767469753600,0.65735138,131.74,131.7,8.02412949]
[1767469753896,0.65735138,131.73,131.69,14.27608403]
[1767469754098,0.65735138,131.73,131.69,21.86946794]
[1767469754399,0.65735138,131.72,131.69,21.86946794]
[1767469765223,0.65735138,131.72,131.69,8.02946794]
[1767469765401,0.65735138,131.72,131.69,21.86946794]
[1767469768406,0.65735138,131.72,131.7,0.43608403]
[1767469769100,0.65735138,131.72,131.69,21.86946794]
[1767469772209,8.30464839,131.74,131.7,0.43608403]
[1767469772411,0.71350875,131.73,131.7,0.43608403]
[1767469777034,0.71350875,131.73,131.7,8.02875294]
[1767469782921,0.71350875,131.72,131.69,7.5933826]
[1767469783122,0.71350875,131.72,131.7,13.86]
[1767469793244,0.71350875,131.71,131.68,7.59415465]
[1767469793446,0.68350876,131.71,131.68,21.89023868]
[1767469794231,0.68350876,131.71,131.68,14.29608403]
[1767469795948,0.68350876,131.71,131.68,21.89023935]
[1767469800926,8.26995621,131.72,131.69,0.46608402]
[1767469801334,0.67789275,131.71,131.69,0.46608402]
[1767469801647,0.67789275,131.71,131.68,21.45415532]
[1767469801827,0.67789275,131.71,131.68,21.92023934]
[1767469803947,8.26995621,131.72,131.69,0.46608402]
[1767469804751,0.67789275,131.72,131.69,0.46608402]
[1767469805954,0.67789275,131.73,131.69,8.05931509]
[1767469809850,0.67789275,131.73,131.69,10.89273496]
[1767469819445,0.67789275,131.73,131.69,10.42665094]
[1767469819757,0.67789275,131.73,131.69,10.89273496]
[1767469825273,0.67789275,131.73,131.69,8.05931509]
[1767469830380,0.6897126,131.72,131.69,8.05931509]
[1767469833482,0.65971259,131.72,131.69,8.05931509]
[1767469876923,0.6639422,131.75,131.7,0.49608403]
[1767469877108,0.6639422,131.75,131.72,0.49608403]
[1767469877310,2.47708608,131.75,131.71,13.86]
[1767469877508,0.6639422,131.74,131.71,13.86]
[1767469878226,0.6639422,131.74,131.71,21.45230247]
[1767469879730,0.6639422,131.74,131.72,1.81314388]
[1767469880115,0.6639422,131.74,131.71,23.76153038]
[1767469880314,0.6639422,131.75,131.72,0.49608403]
[1767469885038,0.6639422,131.75,131.72,8.08755423]
[1767469906252,0.70242276,131.77,131.74,0.49608403]
[1767469906548,0.70242276,131.78,131.75,0.49608403]
[1767469906753,0.70242276,131.78,131.75,0.43608407]
[1767469907549,0.70242276,131.78,131.76,7.58955676]
[1767469907731,0.70242276,131.78,131.76,7.5295568]
[1767469912760,0.70242276,131.78,131.76,7.2653893]
[1767469921063,0.70242276,131.78,131.75,8.02603457]
[1767469921252,0.72317627,131.76,131.74,13.84]
[1767469922074,0.72317627,131.76,131.74,21.43056652]
[1767469926570,0.72317627,131.76,131.74,21.86665059]
[1767469938183,0.72317627,131.76,131.74,21.43056652]
[1767469971388,0.72317627,131.76,131.74,7.59056652]
[1767469980602,0.66861768,131.78,131.74,8.02665059]
[1767469989029,0.66861768,131.77,131.73,7.59105772]
[1767469989199,1.81181588,131.74,131.69,0.43608407]
[1767469989404,1.81181588,131.74,131.7,7.59266177]
[1767469989713,0.66861768,131.73,131.7,7.59266177]
[1767469990012,0.63861769,131.73,131.7,7.59266177]
[1767469990214,5.11650654,131.73,131.7,7.59266177]
[1767469990723,5.11650654,131.73,131.7,8.27824674]
[1767469991428,6.92832242,131.73,131.69,22.11894212]
[1767469991629,1.81181588,131.73,131.69,22.11894212]
[1767469991808,0.66861768,131.72,131.69,22.11894212]
[1767469992005,0.63861768,131.72,131.69,21.43335715]
[1767469993223,0.63861768,131.72,131.69,22.11894212]
[1767469999415,0.60861768,131.72,131.69,22.11894212]
[1767470006041,0.57861768,131.72,131.69,23.930758]
[1767470007047,0.57861768,131.72,131.69,10.090758]
[1767470010443,0.41114527,131.71,131.69,0.68558497]
[1767470010635,0.41114527,131.71,131.68,8.29793445]
[1767470011236,0.41114527,131.71,131.68,10.10975033]
[1767470012651,0.38114525,131.71,131.68,10.10975033]
[1767470019354,0.35114523,131.71,131.68,10.10975033]
[1767470019954,7.5918851,131.72,131.69,0.70417981]
[1767470020258,7.5918851,131.72,131.7,0.70417981]
[1767470020552,7.5918851,131.72,131.69,7.59358381]
[1767470020756,7.5918851,131.72,131.69,8.29776362]
[1767470021059,7.5912852,131.73,131.69,10.1095795]
[1767470021353,0.70422246,131.72,131.69,10.1095795]
[1767470022160,8.29550766,131.73,131.7,0.70417981]
[1767470027154,0.2273965,131.72,131.7,0.70417981]
[1767470031362,0.1973965,131.72,131.7,0.70417981]
[1767470032560,0.1673965,131.72,131.7,0.70417981]
[1767470032765,7.5912852,131.73,131.7,0.70417981]
[1767470034246,5.11731791,131.72,131.7,0.70417981]
[1767470039572,8.29550766,131.73,131.7,0.70417981]
[1767470039772,5.11754057,131.72,131.7,0.70417981]
[1767470040075,8.29550766,131.73,131.7,0.70417981]
[1767470040268,5.11750311,131.72,131.7,0.70417981]
[1767470040451,8.29550766,131.73,131.7,0.70417981]
[1767470040652,5.11750311,131.72,131.7,0.70417981]
[1767470040945,8.29550766,131.73,131.7,0.70417981]
[1767470041150,5.11750311,131.72,131.7,0.70417981]
[1767470041350,8.29550766,131.73,131.7,0.70417981]
[1767470041557,5.11749001,131.72,131.7,0.70417981]
[1767470041755,8.29550766,131.73,131.7,0.70417981]
[1767470041972,5.11749001,131.72,131.7,0.70417981]
[1767470042147,8.29550766,131.73,131.7,0.70417981]
[1767470042350,5.11746125,131.72,131.7,0.70417981]
[1767470042551,8.29550766,131.73,131.7,0.70417981]
[1767470042747,5.11748355,131.72,131.7,0.70417981]
[1767470042975,0.69780362,131.75,131.71,2.83304254]
[1767470043356,0.69780362,131.75,131.72,3.50912664]
[1767470044075,0.69780362,131.75,131.72,0.6760841]
[1767470044475,0.69780362,131.75,131.72,8.26784664]
[1767470045881,0.69780362,131.75,131.72,11.10088918]
[1767470047980,0.69780362,131.75,131.72,8.26784664]
[1767470049686,0.69780362,131.75,131.72,11.10088918]
[1767470054391,0.69780362,131.75,131.72,10.42480508]
[1767470054888,0.69780362,131.75,131.72,11.10088918]
[1767470060993,0.69780362,131.75,131.72,10.42480508]
[1767470061692,0.69780362,131.75,131.72,11.10088918]
[1767470064898,0.69780362,131.75,131.72,8.26784664]
[1767470065077,0.69780362,131.75,131.72,11.10088918]
[1767470066593,0.69780362,131.75,131.72,8.26784664]
[1767470066802,0.69780362,131.75,131.72,11.10088918]
[1767470074410,0.69780362,131.75,131.72,8.26784664]
[1767470074588,0.69780362,131.75,131.72,11.10088918]
[1767470080213,0.69780362,131.75,131.72,11.08904349]
[1767470096639,0.69780362,131.75,131.72,10.06817931]
[1767470109754,0.69780362,131.75,131.72,8.25600095]
[1767470113454,0.69780362,131.75,131.72,10.06817931]
[1767470122567,0.69780362,131.75,131.72,8.25600095]
[1767470129771,0.70815701,131.74,131.71,7.59218792]
[1767470129973,0.70815701,131.72,131.68,2.48826246]
[1767470130164,0.70815701,131.72,131.68,0.6760841]
[1767470130165,2.52033537,131.72,131.68,0.6760841]
[1767470130462,0.70815701,131.71,131.68,0.6760841]
[1767470130949,0.70815701,131.71,131.68,2.48826246]
[1767470131146,0.70815701,131.71,131.68,8.2701046]
[1767470137174,0.70815701,131.71,131.68,7.5940205]
[1767470140068,0.70815701,131.71,131.68,8.2701046]
[1767470140567,0.70815701,131.71,131.68,7.5940205]
[1767470144776,0.70815701,131.71,131.68,8.2701046]
[1767470169683,0.70815701,131.71,131.68,11.10360224]
[1767470212731,0.70815701,131.71,131.68,8.2701046]
[1767470212929,0.70815701,131.71,131.68,11.10360224]
[1767470213229,0.70815701,131.71,131.68,8.2701046]
[1767470213529,0.70815701,131.71,131.68,11.10360224]
[1767470213927,0.70815701,131.71,131.68,8.2701046]
[1767470228466,0.70815701,131.71,131.68,10.08353228]
[1767470228758,0.70815701,131.71,131.68,8.2701046]
[1767470235750,0.70815701,131.71,131.69,0.6760841]
[1767470237976,0.70815701,131.71,131.68,8.2701046]
[1767470302121,0.70815701,131.71,131.68,7.5940205]
[1767470304320,0.70815701,131.71,131.68,8.2701046]
[1767470315427,0.70815701,131.71,131.68,7.5940205]
[1767470315630,0.70815701,131.71,131.68,5.97826161]
[1767470315928,0.70815701,131.71,131.68,6.69426506]
[1767470325139,8.30060975,131.71,131.68,6.69426506]
[1767470329444,8.30060975,131.71,131.68,0.71600345]
[1767470339752,27.27806921,131.71,131.68,0.71600345]
[1767470341350,8.30060975,131.71,131.68,0.71600345]
[1767470348360,22.77472006,131.72,131.69,0.68412412]
[1767470348536,0.60815701,131.74,131.69,0.68412412]
[1767470348737,0.60815701,131.74,131.7,0.68412412]
[1767470349260,0.099,131.73,131.7,0.68412412]
[1767470349635,0.099,131.73,131.7,19.65851577]
[1767470350968,0.60306543,131.72,131.7,0.68412412]
[1767470356058,8.19507893,131.72,131.7,0.68412412]
[1767470358760,8.19507893,131.72,131.68,31.04946318]
[1767470359259,0.10404066,131.71,131.68,23.45538678]
[1767470362544,0.10404066,131.71,131.68,37.31538678]
[1767470365479,0.10404066,131.71,131.68,23.45538678]
[1767470365682,0.10404066,131.71,131.68,37.31538678]
[1767470366871,0.10404066,131.71,131.69,0.68412412]
[1767470367773,0.10404066,131.71,131.68,36.63126266]
[1767470367974,0.10404066,131.71,131.68,14.54412412]
[1767470368465,0.10404066,131.71,131.69,0.68412412]
[1767470371374,0.10404066,131.71,131.68,14.5604686]
[1767470371672,0.10404066,131.71,131.69,0.7004686]
[1767470375873,7.5920135,131.72,131.69,0.7004686]
[1767470376052,8.20017051,131.72,131.69,0.7004686]
[1767470382282,7.5920135,131.72,131.68,36.63472006]
[1767470382775,0.60815701,131.71,131.68,36.63472006]
[1767470383983,8.20017051,131.72,131.69,0.7004686]
[1767470386766,0.099,131.71,131.69,0.7004686]
[1767470387066,7.5920135,131.72,131.69,0.7004686]
[1767470387364,7.6910135,131.72,131.69,0.7004686]
[1767470389792,7.5920135,131.72,131.68,13.86]
[1767470390288,0.60815701,131.71,131.68,13.86]
[1767470390462,8.20017051,131.72,131.69,0.7004686]
[1767470390666,0.099,131.71,131.68,13.86]
[1767470391690,7.6910135,131.72,131.69,0.7004686]
[1767470401692,42.35978957,131.74,131.69,0.7004686]
[1767470402011,7.59137915,131.73,131.69,0.7004686]
[1767470402309,2.833591,131.75,131.71,0.69179765]
[1767470402604,2.932591,131.75,131.71,0.69179765]
[1767470403111,10.52309808,131.75,131.71,0.69179765]
[1767470403785,7.59050708,131.75,131.72,0.69179765]
[1767470404012,33.45426599,131.77,131.72,0.69179765]
[1767470404328,3.44174801,131.77,131.73,0.69179765]
[1767470404712,0.60306543,131.75,131.72,0.69179765]
[1767470405416,11.02696954,131.75,131.72,0.69179765]
[1767470406117,2.93763166,131.74,131.71,0.69179765]
[1767470406629,2.833591,131.73,131.71,0.69179765]
[1767470407004,2.833591,131.73,131.7,13.86]
[1767470407005,3.43166618,131.73,131.7,14.55179765]
[1767470407423,11.02326637,131.73,131.7,14.55179765]
[1767470407635,11.02326637,131.73,131.7,0.69179765]
[1767470409812,8.18967537,131.73,131.7,0.69179765]
[1767470410030,6.14160019,131.73,131.71,0.69179765]
[1767470410220,0.65909377,131.76,131.71,16.693591]
[1767470410421,0.65909377,131.76,131.71,24.28714865]
[1767470410720,0.65909377,131.76,131.72,0.11684299]
[1767470411116,0.65909377,131.75,131.72,0.11684299]
[1767470412529,0.65909377,131.75,131.72,7.70865526]
[1767470419245,0.65909377,131.75,131.72,10.54224626]
[1767470425446,0.65909377,131.74,131.71,21.45355765]
[1767470425639,0.65909377,131.73,131.69,24.38384056]
[1767470425827,3.49268477,131.73,131.69,32.92980347]
[1767470426029,0.65909377,131.72,131.69,32.92980347]
[1767470426543,0.65909377,131.72,131.69,13.95684299]
[1767470427549,0.65909377,131.72,131.69,0.11684299]
[1767470427950,0.65909377,131.72,131.69,7.710346]
[1767470440542,0.65909377,131.72,131.69,7.59350301]
[1767470445661,0.66943557,131.71,131.68,22.77299123]
[1767470445865,0.66943557,131.71,131.68,0.11684299]
[1767470451769,0.66943557,131.7,131.67,0.11684299]
[1767470451966,0.63943558,131.7,131.67,13.97684299]
[1767470453775,0.60943559,131.7,131.67,13.97684299]
[1767470456377,0.60943559,131.7,131.67,13.86]
[1767470458278,0.66943557,131.69,131.67,13.86]
[1767470458582,0.63943558,131.69,131.65,24.49617806]
[1767470459182,2.833591,131.69,131.64,24.49667558]
[1767470460195,2.833591,131.69,131.65,7.59589667]
[1767470460369,0.72250861,131.68,131.65,7.59589667]
[1767470460569,0.69250862,131.68,131.65,7.59589667]
[1767470461186,0.69250862,131.68,131.65,9.6470717]
[1767470461781,7.59322651,131.7,131.66,0.23684295]
[1767470462082,7.59322651,131.7,131.66,7.83198459]
[1767470462578,0.72250861,131.69,131.66,7.83198459]
[1767470466289,0.72250861,131.68,131.64,15.91117503]
[1767470466466,0.72250861,131.68,131.65,0.23684295]
[1767470468393,8.31670614,131.68,131.65,0.23684295]
[1767470468583,0.72250861,131.67,131.64,21.69293194]
[1767470468884,0.69250862,131.67,131.64,21.69293194]
[1767470469288,0.69250862,131.67,131.64,14.09684295]
[1767470473094,2.53684069,131.66,131.63,0.26684294]
[1767470473403,2.5068407,131.66,131.63,7.86387924]
[1767470479298,0.69250862,131.66,131.63,7.86387924]
[1767470481687,0.69250862,131.66,131.64,0.29684293]
[1767470481880,10.1317871,131.67,131.64,0.29684293]
[1767470482082,0.72250861,131.66,131.63,7.89387923]
[1767470502635,0.69250862,131.66,131.63,7.89387923]
[1767470508638,0.69250862,131.66,131.62,7.59762953]
[1767470508940,0.69250862,131.66,131.62,21.78447245]
[1767470509641,0.66250863,131.66,131.62,21.78447245]
[1767470510241,1.81433208,131.65,131.61,0.35684291]
[1767470510443,1.81433208,131.65,131.61,14.21684291]
[1767470510644,1.81433208,131.64,131.61,14.21684291]
[1767470511137,1.81433208,131.64,131.61,13.86]
[1767470511345,1.81433208,131.64,131.61,21.45814323]
[1767470511644,0.70062068,131.63,131.61,21.45814323]
[1767470511950,0.67062069,131.63,131.61,21.45814323]
[1767470516352,0.6406207,131.63,131.61,21.45814323]
[1767470520124,0.6406207,131.63,131.61,21.45810515]
[1767470520446,0.6406207,131.63,131.61,7.59810515]
[1767470522560,0.66938413,131.61,131.59,13.86]
[1767470522854,0.63938414,131.61,131.59,13.86]
[1767470523229,0.60938415,131.61,131.58,8.01658537]
[1767470524196,0.60938415,131.61,131.59,7.59929233]
[1767470524479,7.59668158,131.64,131.6,0.47684287]
[1767470524856,10.43431503,131.64,131.6,0.47684287]
[1767470525387,0.66938413,131.63,131.6,0.47684287]
[1767470525588,0.66938413,131.63,131.59,10.91359837]
[1767470526390,0.66938413,131.63,131.59,8.07596492]
[1767470526989,0.66938413,131.62,131.59,8.07596492]
[1767470528306,0.66938413,131.61,131.57,0.47684287]
[1767470528487,0.66938413,131.6,131.58,8.07670966]
[1767470528794,10.43532469,131.62,131.58,7.59986679]
[1767470529893,10.43532469,131.62,131.58,8.28138027]
[1767470530597,0.66938413,131.61,131.58,8.28138027]
[1767470531873,0.66938413,131.61,131.58,7.59986679]
[1767470533203,0.66938413,131.61,131.58,8.28138027]
[1767470534920,0.66938413,131.61,131.58,7.59986679]
[1767470535208,0.66938413,131.6,131.57,8.28185711]
[1767470535383,0.66938413,131.6,131.57,22.14185711]
[1767470536705,0.63938414,131.6,131.57,22.14185711]
[1767470536904,7.59847425,131.61,131.58,0.68151348]
[1767470538821,8.26785838,131.61,131.58,0.68151348]
[1767470539516,0.66938413,131.6,131.58,0.68151348]
[1767470543324,8.26785838,131.61,131.58,0.68151348]
[1767470550018,8.26157664,131.61,131.58,0.68151348]
[1767470550722,0.66310239,131.6,131.58,0.68151348]
[1767470551215,0.66310239,131.6,131.57,24.99035783]
[1767470551416,0.66310239,131.6,131.57,22.15272438]
[1767470553524,0.66310239,131.6,131.57,21.46034363]
[1767470553732,0.66310239,131.6,131.57,22.15272438]
[1767470558728,0.66310239,131.6,131.57,21.46034363]
[1767470561235,0.66310239,131.6,131.57,22.15272438]
[1767470561640,0.66310239,131.6,131.57,21.46034363]
[1767470561934,0.66310239,131.6,131.57,20.73534363]
[1767470562313,0.66310239,131.6,131.57,21.42772438]
[1767470566825,0.66310239,131.6,131.57,20.29967301]
[1767470567330,0.66310239,131.6,131.57,20.99205376]
[1767470567842,2.93663345,131.58,131.55,0.69238075]
[1767470568023,2.83763345,131.58,131.54,8.29427239]
[1767470568735,2.83763345,131.57,131.53,21.46275155]
[1767470569242,26.59776578,131.59,131.53,0.69238075]
[1767470569420,2.83763345,131.58,131.53,3.5300142]
[1767470570117,2.83763345,131.58,131.53,11.13282588]
[1767470571044,7.60051683,131.57,131.53,11.13282588]
[1767470571738,7.60051683,131.57,131.53,10.44044513]
[1767470573347,7.60051683,131.57,131.53,11.13282588]
[1767470573548,7.60051683,131.57,131.54,0.69238075]
[1767470574150,10.43815028,131.57,131.54,0.69238075]
[1767470576751,10.43815028,131.57,131.52,24.99302159]
[1767470577050,10.43815028,131.57,131.52,22.15538814]
[1767470577652,10.43815028,131.57,131.53,0.69238075]
[1767470578455,2.83763345,131.56,131.53,0.69238075]
[1767470580448,10.43930581,131.55,131.53,0.69238075]
[1767470581232,10.43930581,131.55,131.52,14.53523873]
[1767470581645,2.83763345,131.54,131.52,13.86]
[1767470581843,2.83763345,131.54,131.52,0.67523873]
[1767470582135,2.83763345,131.54,131.51,14.53523873]
[1767470582641,10.44013126,131.54,131.51,14.53523873]
[1767470583854,10.44013126,131.54,131.5,7.60447584]
[1767470584036,10.44013126,131.54,131.5,0.67523873]
[1767470584458,9.42109387,131.54,131.5,0.67523873]
[1767470586762,9.42109387,131.54,131.49,22.1401627]
[1767470587462,9.42109387,131.54,131.5,0.67523873]
[1767470589665,1.81859606,131.53,131.5,0.67523873]
[1767470590267,1.81859606,131.53,131.51,0.67523873]
[1767470591363,1.78859607,131.53,131.51,0.67523873]
[1767470591864,1.78859607,131.53,131.5,7.60454001]
[1767470592167,1.78859607,131.53,131.51,0.67523873]
[1767470594570,9.39142745,131.53,131.51,0.67523873]
[1767470594790,9.42202122,131.52,131.5,0.67523873]
[1767470595091,9.42202122,131.52,131.49,13.88]
[1767470595264,9.42165176,131.53,131.49,22.16017654]
[1767470596149,9.42165176,131.53,131.49,8.28017654]
[1767470596348,9.42165176,131.53,131.49,22.16017654]
[1767470596654,1.81859606,131.52,131.49,0.67523873]
[1767470596860,1.81859606,131.52,131.48,14.55523873]
[1767470598275,1.81859606,131.52,131.49,0.67523873]
[1767470599470,9.42228865,131.52,131.49,0.67523873]
[1767470600183,9.42228865,131.52,131.45,19.01793525]
[1767470600184,0.10470476,131.49,131.43,13.88]
[1767470600472,0.67523873,131.51,131.44,9.42663014]
[1767470600770,0.099,131.49,131.44,28.44671534]
[1767470601170,1.91759606,131.5,131.45,1.81859606]
[1767470601548,0.099,131.5,131.47,1.81859606]
[1767470602054,0.099,131.5,131.47,2.49383479]
[1767470603173,0.099,131.5,131.46,0.67523873]
[1767470603346,0.67523873,131.54,131.5,0.67523873]
[1767470603951,0.67523873,131.54,131.5,2.49383479]
[1767470604777,7.60282825,131.53,131.5,2.49383479]
[1767470605676,7.60282825,131.53,131.5,0.67523873]
[1767470605973,7.60282825,131.53,131.5,2.49383479]
[1767470609785,7.60282825,131.53,131.51,0.67698729]
[1767470612663,8.2776851,131.54,131.51,0.67698729]
[1767470614390,8.2776851,131.54,131.5,2.51680262]
[1767470614561,0.099,131.53,131.5,2.51680262]
[1767470615183,8.2776851,131.54,131.51,0.69820656]
[1767470616062,10.09571828,131.55,131.51,0.69820656]
[1767470616266,8.27712222,131.55,131.51,0.69820656]
[1767470617385,8.27712222,131.55,131.52,0.69820656]
[1767470620785,0.66947634,131.53,131.49,0.69820656]
[1767470620987,0.10470476,131.52,131.49,0.69820656]
[1767470621177,0.10470476,131.52,131.48,16.39680262]
[1767470621576,9.52670714,131.52,131.48,14.57820656]
[1767470623587,0.10470476,131.52,131.49,0.69820656]
[1767470625094,7.70818325,131.52,131.49,0.69820656]
[1767470627103,7.70818325,131.52,131.48,23.30416854]
[1767470627903,7.70818325,131.52,131.48,21.48557248]
[1767470628108,7.70818325,131.52,131.48,23.30416854]
[1767470629135,0.7093479,131.53,131.49,1.81859606]
[1767470629292,0.7093479,131.53,131.5,0.69820656]
[1767470629601,8.31159816,131.54,131.5,0.69820656]
[1767470629902,0.7093479,131.53,131.5,2.51680262]
[1767470631407,0.7093479,131.53,131.5,10.12114013]
[1767470631711,8.31159816,131.54,131.51,0.69820656]
[1767470637011,0.7093479,131.54,131.51,2.51680262]
[1767470637220,0.7093479,131.54,131.51,10.12068561]
[1767470639508,8.31171787,131.54,131.51,0.69820656]
[1767470639716,0.7093479,131.53,131.5,0.69820656]
[1767470641099,0.70744678,131.52,131.48,10.08564263]
[1767470641412,0.70744678,131.52,131.49,14.54154067]
[1767470642916,0.70744678,131.52,131.49,0.66154067]
[1767470648121,8.310859,131.52,131.49,0.66154067]
[1767470666527,8.31152826,131.51,131.48,14.54154067]
[1767470667204,8.31152826,131.51,131.49,0.66154067]
[1767470667607,8.31152826,131.51,131.49,0.60154071]
[1767470667812,8.31152826,131.51,131.47,7.60617397]
[1767470668118,8.31152826,131.51,131.47,10.44830459]
[1767470668425,8.31152826,131.51,131.47,7.60617397]
[1767470668628,8.31152826,131.51,131.47,10.44830459]
[1767470669630,8.31152826,131.51,131.48,0.66154067]
[1767470670331,8.31152826,131.51,131.48,3.50367129]
[1767470671635,8.31152826,131.51,131.49,0.70938017]
[1767470676936,0.67261676,131.5,131.47,25.03768476]
[1767470677523,0.67261676,131.5,131.48,0.70938017]
[1767470677738,0.67261676,131.51,131.48,0.70938017]
[1767470678841,8.27665638,131.51,131.48,3.55151079]
[1767470679219,0.67261676,131.5,131.48,3.55151079]
[1767470679843,8.27665638,131.51,131.48,3.55151079]
[1767470685443,0.67261676,131.52,131.49,0.70938017]
[1767470685648,0.67261676,131.52,131.5,0.70938017]
[1767470686135,0.67261676,131.52,131.49,2.84213062]
[1767470686438,0.67261676,131.52,131.49,3.55151079]
[1767470687042,0.67261676,131.52,131.49,0.70938017]
[1767470687234,8.27608109,131.52,131.49,0.70938017]
[1767470692251,0.67261676,131.51,131.49,0.70938017]
[1767470693629,0.67261676,131.51,131.48,10.4476029]
[1767470696349,0.67261676,131.5,131.47,16.72213062]
[1767470697363,0.67261676,131.5,131.47,17.43151079]
[1767470697855,0.67261676,131.5,131.48,0.70938017]
[1767470698354,7.60426949,131.51,131.48,0.70938017]
[1767470698558,8.27688625,131.51,131.48,0.70938017]
[1767470700234,0.66987108,131.49,131.46,0.69922818]
[1767470700632,0.66987108,131.48,131.44,24.33013647]
[1767470701154,0.66987108,131.48,131.44,21.48800585]
[1767470702154,8.27575262,131.48,131.44,21.48800585]
[1767470702355,8.27575262,131.48,131.44,13.88]
[1767470702574,8.27575262,131.48,131.45,0.69922818]
[1767470703578,0.66987108,131.47,131.43,7.60842215]
[1767470703732,0.66987108,131.44,131.41,0.69922818]
[1767470703936,3.5120017,131.44,131.41,0.69922818]
[1767470704181,11.12036527,131.44,131.41,0.69922818]
[1767470704461,0.66987108,131.43,131.4,0.69922818]
[1767470706637,0.66987108,131.45,131.42,0.69922818]
[1767470707158,10.44939425,131.46,131.4,7.61013931]
[1767470707159,8.27713471,131.46,131.43,3.5413588]
[1767470707654,0.66987108,131.46,131.43,3.5413588]
[1767470707857,7.60591753,131.48,131.45,0.69922818]
[1767470708362,8.27578861,131.48,131.45,0.69922818]
[1767470709361,0.66987108,131.47,131.44,10.12696737]
[1767470709760,0.66987108,131.46,131.41,0.69922818]
[1767470710058,0.66987108,131.45,131.41,10.12841664]
[1767470710269,2.48980942,131.46,131.42,8.30836223]
[1767470710863,0.66987108,131.46,131.42,10.12830057]
[1767470711162,0.66987108,131.46,131.43,10.12777902]
[1767470711843,0.66987108,131.46,131.43,9.42855084]
[1767470712040,7.60535347,131.49,131.45,1.81993834]
[1767470712241,7.60535347,131.49,131.45,2.51916652]
[1767470712441,7.60535347,131.49,131.45,0.69922818]
[1767470712745,9.42529181,131.49,131.45,0.69922818]
[1767470713962,0.66987108,131.48,131.45,0.69922818]
[1767470725071,0.66987108,131.5,131.46,0.69922818]
[1767470725257,2.48980942,131.51,131.46,0.69922818]
[1767470725652,0.66987108,131.5,131.46,0.69922818]
[1767470725968,2.48980942,131.51,131.46,0.69922818]
[1767470726158,10.09396498,131.51,131.46,8.30560005]
[1767470726456,10.09396498,131.51,131.47,0.69922818]
[1767470728874,10.09396498,131.51,131.48,0.69922818]
[1767470729058,2.48980942,131.51,131.48,0.69922818]
[1767470730583,8.30897153,131.52,131.48,0.69922818]
[1767470730760,10.12890987,131.52,131.48,0.69922818]
[1767470731075,0.70543012,131.51,131.48,0.69922818]
[1767470731273,2.52536846,131.51,131.48,0.69922818]
[1767470731458,2.52536846,131.51,131.48,0.6392282]
[1767470731775,0.68240997,131.5,131.48,0.6392282]
[1767470732479,0.68240997,131.5,131.47,7.60625911]
[1767470732679,10.10709514,131.5,131.46,7.60683542]
[1767470733580,10.10709514,131.5,131.46,8.28035183]
[1767470734085,10.10709514,131.5,131.47,0.67351641]
[1767470734788,1.81993834,131.49,131.47,0.67351641]
[1767470737288,2.50234831,131.49,131.47,0.67351641]
[1767470737693,2.50234831,131.49,131.46,8.28035183]
[1767470738264,0.68240997,131.49,131.46,8.28035183]
[1767470738467,2.50234831,131.49,131.46,8.28035183]
[1767470740890,0.68240997,131.49,131.46,8.28035183]
[1767470755108,8.28758066,131.49,131.46,0.67351641]
[1767470762103,7.60517069,131.49,131.46,0.67351641]
[1767470763113,0.71281579,131.49,131.46,0.67351641]
[1767470764910,8.31796181,131.49,131.46,0.67351641]
[1767470768519,8.31762191,131.5,131.46,8.28036188]
[1767470768696,8.31762191,131.5,131.47,0.71393327]
[1767470768896,8.31762191,131.5,131.47,0.65393327]
[1767470769225,0.71281579,131.49,131.46,7.60684547]
[1767470770906,8.31799576,131.49,131.47,0.71393327]
[1767470771215,8.31799576,131.49,131.47,0.65393327]
[1767470777024,7.60517997,131.49,131.47,0.65393327]
[1767470779929,8.31760344,131.5,131.47,0.65393327]
[1767470784528,11.16076622,131.5,131.47,0.65393327]
[1767470785628,8.31760344,131.5,131.47,0.65393327]
[1767470786928,8.31760344,131.5,131.45,13.88]
[1767470787130,0.71281579,131.46,131.42,7.60882657]
[1767470787430,0.71281579,131.46,131.42,21.48882657]
[1767470788119,0.71281579,131.45,131.42,13.88]
[1767470788305,0.71281579,131.44,131.42,13.88]
[1767470788630,0.6828158,131.44,131.42,14.51326439]
[1767470789126,0.6828158,131.44,131.42,13.88]
[1767470789318,10.45129234,131.44,131.39,3.47642717]
[1767470789526,10.45129234,131.44,131.39,13.88]
[1767470789719,10.45129234,131.44,131.39,21.49058618]
[1767470790125,10.45129234,131.44,131.39,24.96701335]